fUST/lending_fUST_20250520
["ID","MTS","AMOUNT","RATE_DAILY","PERIOD"]
[361687751,1747693840724,-151.0,0.0001863,2]
[361687753,1747693840733,-430.0,0.0001863,2]
[361687755,1747693840743,-430.0,0.0001863,2]
[361687757,1747693840753,-509.72,0.0001863,2]
[361687759,1747693840762,-430.0,0.0001863,2]
[361687761,1747693840771,-430.0,0.0001863,2]
[361687764,1747693840781,-151.0,0.0001863,2]
[361687766,1747693840791,-430.0,0.0001863,2]
[361687768,1747693840800,-430.0,0.0001863,2]
[361687770,1747693840810,-470.0,0.0001863,2]
[361687772,1747693840819,-430.0,0.0001863,2]
[361687774,1747693840828,-430.0,0.0001863,2]
[361687776,1747693840838,-430.0,0.0001863,2]
[361687778,1747693840847,-430.0,0.0001863,2]
[361687780,1747693840857,-430.0,0.0001863,2]
[361687782,1747693840866,-430.0,0.0001863,2]
[361687784,1747693840876,-153.100596,0.0001863,2]
[361687786,1747693840885,-430.0,0.0001863,2]
[361687788,1747693840894,-430.0,0.0001863,2]
[361687790,1747693840904,-430.0,0.0001863,2]
[361687792,1747693840913,-430.0,0.0001863,2]
[361687794,1747693840922,-151.0,0.0001863,2]
[361687796,1747693840932,-430.0,0.0001863,2]
[361687798,1747693840942,-151.0,0.0001863,2]
[361687800,1747693840951,-151.0,0.0001863,2]
[361687802,1747693840961,-437.51,0.0001863,2]
[361687804,1747693840970,-1466.96,0.0001863,2]
[361687806,1747693840980,-151.0,0.0001863,2]
[361687808,1747693840989,-1926.89,0.0001863,2]
[361687810,1747693840999,-151.0,0.0001863,2]
[361687812,1747693841009,-151.0,0.0001863,2]
[361687814,1747693841019,-430.0,0.0001863,2]
[361687816,1747693841028,-151.0,0.0001863,2]
[361687817,1747693841038,-151.0,0.0001863,2]
[361687818,1747693841047,-151.0,0.0001863,2]
[361687819,1747693841057,-430.0,0.0001863,2]
[361687820,1747693841066,-584.57,0.0001863,2]
[361687822,1747693841076,-470.0,0.0001863,2]
[361687823,1747693841085,-858.1,0.0001863,2]
[361687824,1747693841096,-151.0,0.0001863,2]
[361687825,1747693841105,-294.274334,0.0001863,2]
[361687826,1747693841114,-430.0,0.0001863,2]
[361687827,1747693841123,-430.0,0.0001863,2]
[361687828,1747693841133,-430.0,0.0001863,2]
[361687829,1747693841142,-151.0,0.0001863,2]
[361687830,1747693841152,-151.0,0.0001863,2]
[361687831,1747693841161,-290.68075,0.0001863,2]
[361687832,1747693841170,-430.0,0.0001863,2]
[361687833,1747693841182,-430.0,0.0001863,2]
[361687834,1747693841192,-430.0,0.0001863,2]
[361687835,1747693841201,-597.19,0.0001863,2]
[361687836,1747693841210,-550.0,0.0001863,2]
[361687837,1747693841219,-430.0,0.0001863,2]
[361687838,1747693841230,-430.0,0.0001863,2]
[361687839,1747693841239,-821.41,0.0001863,2]
[361687840,1747693841248,-430.0,0.0001863,2]
[361687841,1747693841257,-430.0,0.0001863,2]
[361687842,1747693841269,-151.0,0.0001863,2]
[361687843,1747693841278,-151.0,0.0001863,2]
[361687844,1747693841287,-151.0,0.0001863,2]
[361687845,1747693841296,-151.0,0.0001863,2]
[361687846,1747693841306,-151.0,0.0001863,2]
[361687847,1747693841316,-430.0,0.0001863,2]
[361687848,1747693841325,-215.1171395,0.0001863,2]
[361687849,1747693841335,-470.0,0.0001863,2]
[361687850,1747693841343,-430.0,0.0001863,2]
[361687851,1747693841352,-430.0,0.0001863,2]
[361687852,1747693841362,-430.0,0.0001863,2]
[361687853,1747693841372,-430.0,0.0001863,2]
[361687854,1747693841381,-430.0,0.0001863,2]
[361687855,1747693841390,-430.0,0.0001863,2]
[361687857,1747693841400,-566.2316988,0.0001863,2]
[361687858,1747693841409,-430.0,0.0001863,2]
[361687859,1747693841418,-430.0,0.0001863,2]
[361687860,1747693841428,-430.0,0.0001863,2]
[361687862,1747693841438,-451.97,0.0001863,2]
[361687863,1747693841447,-290.0,0.0001863,2]
[361687864,1747693841457,-430.0,0.0001863,2]
[361687865,1747693841466,-430.0,0.0001863,2]
[361687866,1747693841475,-430.0,0.0001863,2]
[361687867,1747693841485,-430.0,0.0001863,2]
[361687868,1747693841494,-430.0,0.0001863,2]
[361687869,1747693841504,-430.0,0.0001863,2]
[361687870,1747693841514,-430.0,0.0001863,2]
[361687871,1747693841523,-628.93,0.0001863,2]
[361687872,1747693841533,-826.72,0.0001863,2]
[361687873,1747693841542,-370.0,0.0001863,2]
[361687874,1747693841551,-430.0,0.0001863,2]
[361687875,1747693841561,-430.0,0.0001863,2]
[361687876,1747693841570,-579.53170102,0.0001863,2]
[361687877,1747693841579,-185.827423,0.0001863,2]
[361687878,1747693841588,-185.827423,0.0001863,2]
[361687879,1747693841598,-185.827423,0.0001863,2]
[361687880,1747693841607,-185.827423,0.0001863,2]
[361687881,1747693841618,-457.8,0.0001863,2]
[361687882,1747693841627,-430.0,0.0001863,2]
[361687883,1747693841637,-430.0,0.0001863,2]
[361687884,1747693841645,-430.0,0.0001863,2]
[361687885,1747693841655,-430.0,0.0001863,2]
[361687886,1747693841665,-788.12,0.0001863,2]
[361687887,1747693841675,-430.0,0.0001863,2]
[361687888,1747693841685,-430.0,0.0001863,2]
[361687889,1747693841694,-430.0,0.0001863,2]
[361687890,1747693841704,-430.0,0.0001863,2]
[361687891,1747693841713,-430.0,0.0001863,2]
[361687892,1747693841722,-430.0,0.0001863,2]
[361687893,1747693841731,-430.0,0.0001863,2]
[361687894,1747693841740,-541.45,0.0001863,2]
[361687895,1747693841750,-645.45,0.0001863,2]
[361687896,1747693841760,-430.0,0.0001863,2]
[361687897,1747693841769,-430.0,0.0001863,2]
[361687898,1747693841779,-430.0,0.0001863,2]
[361687899,1747693841788,-430.0,0.0001863,2]
[361687900,1747693841797,-430.0,0.0001863,2]
[361687901,1747693841807,-430.0,0.0001863,2]
[361687902,1747693841816,-430.0,0.0001863,2]
[361687903,1747693841825,-430.0,0.0001863,2]
[361687904,1747693841835,-430.0,0.0001863,2]
[361687905,1747693841844,-420.00306864,0.0001863,2]
[361687906,1747693841853,-430.0,0.0001863,2]
[361687907,1747693841863,-430.0,0.0001863,2]
[361687908,1747693841872,-430.0,0.0001863,2]
[361687909,1747693841881,-560.02,0.0001863,2]
[361687910,1747693841891,-772.82,0.0001863,2]
[361687911,1747693841900,-430.0,0.0001863,2]
[361687912,1747693841909,-430.0,0.0001863,2]
[361687913,1747693841918,-430.0,0.0001863,2]
[361687914,1747693841927,-430.0,0.0001863,2]
[361687915,1747693841936,-430.0,0.0001863,2]
[361687916,1747693841946,-430.0,0.0001863,2]
[361687917,1747693841956,-151.0,0.0001863,2]
[361687918,1747693841965,-151.0,0.0001863,2]
[361687919,1747693841975,-151.0,0.0001863,2]
[361687920,1747693841985,-151.0,0.0001863,2]
[361687921,1747693841995,-151.0,0.0001863,2]
[361687922,1747693842004,-430.0,0.0001863,2]
[361687923,1747693842014,-430.0,0.0001863,2]
[361687924,1747693842023,-166.86169645,0.0001863,2]
[361687925,1747693842033,-430.0,0.0001863,2]
[361687926,1747693842042,-430.0,0.0001863,2]
[361687927,1747693842052,-430.0,0.0001863,2]
[361687928,1747693842062,-151.0,0.0001863,2]
[361687929,1747693842071,-151.0,0.0001863,2]
[361687930,1747693842081,-430.0,0.0001863,2]
[361687931,1747693842091,-151.0,0.0001863,2]
[361687932,1747693842100,-151.0,0.0001863,2]
[361687933,1747693842109,-273.93024,0.0001863,2]
[361687934,1747693842120,-430.0,0.0001863,2]
[361687935,1747693842129,-430.0,0.0001863,2]
[361687936,1747693842139,-430.0,0.0001863,2]
[361687937,1747693842149,-430.0,0.0001863,2]
[361687938,1747693842158,-688.5,0.0001863,2]
[361687939,1747693842168,-430.0,0.0001863,2]
[361687940,1747693842178,-430.0,0.0001863,2]
[361687941,1747693842191,-616.06,0.0001863,2]
[361687942,1747693842200,-430.0,0.0001863,2]
[361687943,1747693842210,-430.0,0.0001863,2]
[361687944,1747693842219,-455.92,0.0001863,2]
[361687945,1747693842230,-430.0,0.0001863,2]
[361687946,1747693842239,-430.0,0.0001863,2]
[361687947,1747693842248,-430.0,0.0001863,2]
[361687948,1747693842258,-430.0,0.0001863,2]
[361687949,1747693842267,-430.0,0.0001863,2]
[361687950,1747693842276,-430.0,0.0001863,2]
[361687951,1747693842286,-430.0,0.0001863,2]
[361687952,1747693842295,-430.0,0.0001863,2]
[361687953,1747693842304,-430.0,0.0001863,2]
[361687954,1747693842314,-430.0,0.0001863,2]
[361687955,1747693842323,-430.0,0.0001863,2]
[361687956,1747693842333,-430.0,0.0001863,2]
[361687957,1747693842343,-430.0,0.0001863,2]
[361687958,1747693842352,-430.0,0.0001863,2]
[361687959,1747693842362,-430.0,0.0001863,2]
[361687960,1747693842372,-430.0,0.0001863,2]
[361687961,1747693842381,-430.0,0.0001863,2]
[361687962,1747693842391,-1238.66,0.0001863,2]
[361687963,1747693842400,-430.0,0.0001863,2]
[361687964,1747693842410,-430.0,0.0001863,2]
[361687965,1747693842420,-430.0,0.0001863,2]
[361687966,1747693842429,-681.65,0.0001863,2]
[361687967,1747693842439,-430.0,0.0001863,2]
[361687968,1747693842449,-430.0,0.0001863,2]
[361687969,1747693842458,-151.0,0.0001863,2]
[361687970,1747693842468,-430.0,0.0001863,2]
[361687971,1747693842478,-430.0,0.0001863,2]
[361687972,1747693842488,-430.0,0.0001863,2]
[361687973,1747693842497,-430.0,0.0001863,2]
[361687974,1747693842509,-862.58,0.0001863,2]
[361687975,1747693842519,-724.76,0.0001863,2]
[361687976,1747693842528,-430.0,0.0001863,2]
[361687977,1747693842538,-430.0,0.0001863,2]
[361687978,1747693842548,-430.0,0.0001863,2]
[361687979,1747693842558,-430.0,0.0001863,2]
[361687980,1747693842567,-718.44,0.0001863,2]
[361687981,1747693842577,-1486.21,0.0001863,2]
[361687982,1747693842587,-430.0,0.0001863,2]
[361687983,1747693842596,-430.0,0.0001863,2]
[361687984,1747693842606,-430.0,0.0001863,2]
[361687985,1747693842615,-436.65,0.0001863,2]
[361687986,1747693842625,-430.0,0.0001863,2]
[361687987,1747693842635,-430.0,0.0001863,2]
[361687988,1747693842644,-430.0,0.0001863,2]
[361687989,1747693842655,-1409.24,0.0001863,2]
[361687990,1747693842664,-1956.59,0.0001863,2]
[361687991,1747693842674,-547.91,0.0001863,2]
[361687992,1747693842684,-430.0,0.0001863,2]
[361687993,1747693842694,-430.0,0.0001863,2]
[361687994,1747693842704,-621.1,0.0001863,2]
[361687995,1747693842714,-1606.3,0.0001863,2]
[361687996,1747693842724,-430.0,0.0001863,2]
[361687997,1747693842734,-430.0,0.0001863,2]
[361687998,1747693842744,-370.0,0.0001863,2]
[361687999,1747693842754,-479.24,0.0001863,2]
[361688000,1747693842764,-652.6,0.0001863,2]
[361688001,1747693842774,-3564.26,0.0001863,2]
[361688002,1747693842784,-625.58,0.0001863,2]
[361688003,1747693842794,-573.62,0.0001863,2]
[361688004,1747693842804,-531.21,0.0001863,2]
[361688005,1747693842814,-430.0,0.0001863,2]
[361688006,1747693842824,-430.0,0.0001863,2]
[361688007,1747693842834,-430.0,0.0001863,2]
[361688008,1747693842845,-787.06,0.0001863,2]
[361688009,1747693842854,-430.0,0.0001863,2]
[361688010,1747693842864,-430.0,0.0001863,2]
[361688011,1747693842874,-430.0,0.0001863,2]
[361688012,1747693842883,-430.0,0.0001863,2]
[361688014,1747693842893,-917.56,0.0001863,2]
[361688015,1747693842903,-1038.69,0.0001863,2]
[361688016,1747693842913,-430.0,0.0001863,2]
[361688017,1747693842923,-430.0,0.0001863,2]
[361688018,1747693842932,-963.29,0.0001863,2]
[361688019,1747693842942,-430.0,0.0001863,2]
[361688020,1747693842952,-430.0,0.0001863,2]
[361688021,1747693842961,-1059.44,0.0001863,2]
[361688022,1747693842971,-2463.34,0.0001863,2]
[361688023,1747693842981,-1322.67,0.0001863,2]
[361688024,1747693842990,-430.0,0.0001863,2]
[361688025,1747693843000,-989.85,0.0001863,2]
[361688026,1747693843010,-430.0,0.0001863,2]
[361688027,1747693843020,-472.87,0.0001863,2]
[361688028,1747693843029,-430.0,0.0001863,2]
[361688029,1747693843039,-430.0,0.0001863,2]
[361688030,1747693843048,-430.0,0.0001863,2]
[361688032,1747693843058,-1071.91,0.0001863,2]
[361688033,1747693843068,-430.0,0.0001863,2]
[361688036,1747693843077,-430.0,0.0001863,2]
[361688038,1747693843087,-571.01128689,0.0001863,2]
[361688040,1747693843097,-370.0,0.0001863,2]
[361688042,1747693843106,-430.0,0.0001863,2]
[361688044,1747693843116,-6970.38,0.0001863,2]
[361688046,1747693843126,-1365.37,0.0001863,2]
[361688048,1747693843135,-435.96,0.0001863,2]
[361688050,1747693843144,-430.0,0.0001863,2]
[361688051,1747693843154,-430.0,0.0001863,2]
[361688054,1747693843164,-430.0,0.0001863,2]
[361688056,1747693843173,-492.52,0.0001863,2]
[361688057,1747693843186,-572.38,0.0001863,2]
[361688058,1747693843196,-370.0,0.0001863,2]
[361688059,1747693843205,-370.0,0.0001863,2]
[361688060,1747693843215,-430.0,0.0001863,2]
[361688061,1747693843225,-1276.02,0.0001863,2]
[361688062,1747693843235,-430.0,0.0001863,2]
[361688063,1747693843244,-430.0,0.0001863,2]
[361688064,1747693843254,-430.0,0.0001863,2]
[361688065,1747693843266,-2285.96,0.0001863,2]
[361688066,1747693843276,-1674.68,0.0001863,2]
[361688067,1747693843285,-430.0,0.0001863,2]
[361688068,1747693843294,-430.0,0.0001863,2]
[361688069,1747693843304,-430.0,0.0001863,2]
[361688070,1747693843314,-430.0,0.0001863,2]
[361688071,1747693843323,-430.0,0.0001863,2]
[361688072,1747693843332,-430.0,0.0001863,2]
[361688073,1747693843342,-430.0,0.0001863,2]
[361688074,1747693843352,-430.0,0.0001863,2]
[361688075,1747693843362,-430.0,0.0001863,2]
[361688076,1747693843371,-430.0,0.0001863,2]
[361688077,1747693843380,-430.0,0.0001863,2]
[361688078,1747693843390,-1177.1,0.0001863,2]
[361688079,1747693843400,-430.0,0.0001863,2]
[361688080,1747693843410,-430.0,0.0001863,2]
[361688081,1747693843419,-430.0,0.0001863,2]
[361688083,1747693843429,-4144.0,0.0001863,2]
[361688085,1747693843438,-4514.42,0.0001863,2]
[361688086,1747693843449,-589.39,0.0001863,2]
[361688087,1747693843458,-430.0,0.0001863,2]
[361688088,1747693843468,-2345.01,0.0001863,2]
[361688089,1747693843477,-430.0,0.0001863,2]
[361688090,1747693843486,-430.0,0.0001863,2]
[361688091,1747693843496,-430.0,0.0001863,2]
[361688092,1747693843505,-430.0,0.0001863,2]
[361688093,1747693843514,-430.0,0.0001863,2]
[361688094,1747693843524,-430.0,0.0001863,2]
[361688095,1747693843534,-1255.98,0.0001863,2]
[361688096,1747693843543,-1428.09,0.0001863,2]
[361688097,1747693843552,-1007.3,0.0001863,2]
[361688098,1747693843562,-430.0,0.0001863,2]
[361688099,1747693843571,-430.0,0.0001863,2]
[361688100,1747693843581,-430.0,0.0001863,2]
[361688102,1747693843591,-567.37,0.0001863,2]
[361688104,1747693843600,-430.0,0.0001863,2]
[361688106,1747693843610,-331.931852,0.0001863,2]
[361688107,1747693843619,-331.931852,0.0001863,2]
[361688108,1747693843628,-430.0,0.0001863,2]
[361688109,1747693843637,-331.931852,0.0001863,2]
[361688110,1747693843647,-331.931852,0.0001863,2]
[361688111,1747693843656,-331.931852,0.0001863,2]
[361688112,1747693843666,-430.0,0.0001863,2]
[361688114,1747693843675,-331.931852,0.0001863,2]
[361688115,1747693843685,-1170.71,0.0001863,2]
[361688117,1747693843694,-331.931852,0.0001863,2]
[361688119,1747693843704,-331.931852,0.0001863,2]
[361688122,1747693843713,-430.0,0.0001863,2]
[361688124,1747693843722,-331.931852,0.0001863,2]
[361688126,1747693843732,-331.931852,0.0001863,2]
[361688128,1747693843741,-430.0,0.0001863,2]
[361688130,1747693843751,-6164.94,0.0001863,2]
[361688133,1747693843760,-1695.82,0.0001863,2]
[361688134,1747693843770,-430.0,0.0001863,2]
[361688136,1747693843780,-1029.82,0.0001863,2]
[361688138,1747693843790,-430.0,0.0001863,2]
[361688140,1747693843800,-430.0,0.0001863,2]
[361688141,1747693843810,-430.0,0.0001863,2]
[361688142,1747693843819,-381.73645313,0.0001863,2]
[361688143,1747693843829,-1142.01,0.0001863,2]
[361688144,1747693843839,-430.0,0.0001863,2]
[361688145,1747693843849,-503.28,0.0001863,2]
[361688146,1747693843858,-1592.78,0.0001863,2]
[361688147,1747693843869,-430.0,0.0001863,2]
[361688148,1747693843879,-1295.39,0.0001863,2]
[361688149,1747693843889,-670.07,0.0001863,2]
[361688150,1747693843899,-430.0,0.0001863,2]
[361688151,1747693843909,-430.0,0.0001863,2]
[361688152,1747693843919,-430.0,0.0001863,2]
[361688153,1747693843928,-430.0,0.0001863,2]
[361688154,1747693843938,-430.0,0.0001863,2]
[361688155,1747693843947,-430.0,0.0001863,2]
[361688156,1747693843957,-1232.45,0.0001863,2]
[361688157,1747693843967,-1017.31,0.0001863,2]
[361688158,1747693843977,-430.0,0.0001863,2]
[361688159,1747693843986,-430.0,0.0001863,2]
[361688160,1747693843996,-1326.53,0.0001863,2]
[361688161,1747693844006,-430.0,0.0001863,2]
[361688162,1747693844016,-1258.46,0.0001863,2]
[361688163,1747693844025,-2643.08,0.0001863,2]
[361688164,1747693844034,-430.0,0.0001863,2]
[361688165,1747693844044,-430.0,0.0001863,2]
[361688166,1747693844054,-430.0,0.0001863,2]
[361688167,1747693844063,-1678.98,0.0001863,2]
[361688168,1747693844073,-430.0,0.0001863,2]
[361688169,1747693844083,-505.64400247,0.0001863,2]
[361688170,1747693844230,-670.64,0.0001863,2]
[361688171,1747693844240,-872.02,0.0001863,2]
[361688172,1747693844249,-420.0,0.0001863,2]
[361688173,1747693844258,-430.0,0.0001863,2]
[361688174,1747693844267,-430.0,0.0001863,2]
[361688175,1747693844276,-430.0,0.0001863,2]
[361688176,1747693844286,-747.98,0.0001863,2]
[361688177,1747693844296,-993.14,0.0001863,2]
[361688178,1747693844305,-864.98327,0.0001863,2]
[361688179,1747693844314,-430.0,0.0001863,2]
[361688180,1747693844323,-864.98327,0.0001863,2]
[361688181,1747693844332,-864.98327,0.0001863,2]
[361688182,1747693844341,-867.01,0.0001863,2]
[361688183,1747693844351,-430.0,0.0001863,2]
[361688184,1747693844359,-864.98327,0.0001863,2]
[361688185,1747693844369,-561.84,0.0001863,2]
[361688186,1747693844378,-430.0,0.0001863,2]
[361688187,1747693844387,-896.57,0.0001863,2]
[361688188,1747693844396,-864.98327,0.0001863,2]
[361688189,1747693844406,-864.98327,0.0001863,2]
[361688190,1747693844415,-864.98327,0.0001863,2]
[361688191,1747693844424,-864.983263,0.0001863,2]
[361688192,1747693844434,-430.0,0.0001863,2]
[361688193,1747693844443,-430.0,0.0001863,2]
[361688194,1747693844452,-846.37,0.0001863,2]
[361688195,1747693844462,-489.72,0.0001863,2]
[361688196,1747693844472,-507.94,0.0001863,2]
[361688197,1747693844482,-370.0,0.0001863,2]
[361688198,1747693844491,-430.0,0.0001863,2]
[361688199,1747693844500,-430.0,0.0001863,2]
[361688200,1747693844510,-551.77,0.0001863,2]
[361688201,1747693844520,-533.4,0.0001863,2]
[361688202,1747693844530,-430.0,0.0001863,2]
[361688203,1747693844539,-546.01,0.0001863,2]
[361688204,1747693844549,-1186.61,0.0001863,2]
[361688205,1747693844559,-691.74,0.0001863,2]
[361688206,1747693844568,-536.58,0.0001863,2]
[361688207,1747693844577,-587.23,0.0001863,2]
[361688208,1747693844586,-1193.12,0.0001863,2]
[361688209,1747693844596,-1021.33,0.0001863,2]
[361688210,1747693844605,-430.0,0.0001863,2]
[361688211,1747693844614,-430.0,0.0001863,2]
[361688212,1747693844623,-500.0,0.00018673,2]
[361688213,1747693844632,-500.0,0.00018673,2]
[361688214,1747693844642,-151.0,0.000187,2]
[361688215,1747693844651,-1159.3892112,0.00018728,2]
[361688216,1747693844660,-150.287,0.00018778,2]
[361688217,1747693844669,-150.711,0.00018778,2]
[361688218,1747693844678,-150.069,0.00018778,2]
[361688219,1747693844688,-152.378,0.00018778,2]
[361688220,1747693844697,-155.355,0.00018778,2]
[361688221,1747693844705,-228.665,0.00018778,2]
[361688222,1747693844714,-404.0,0.00018778,2]
[361688223,1747693844723,-560.452,0.00018778,2]
[361688224,1747693844732,-151.0,0.00018778,2]
[361688225,1747693844741,-151.0,0.00018778,2]
[361688226,1747693844750,-185.827423,0.00018778,2]
[361688227,1747693844759,-185.827423,0.00018778,2]
[361688228,1747693844769,-151.0,0.00018794,2]
[361688229,1747693844778,-151.0,0.00018794,2]
[361688230,1747693844787,-151.0,0.00018794,2]
[361688231,1747693844796,-4686.0295582,0.00018794,2]
[361688232,1747693844805,-331.931852,0.00018794,2]
[361688233,1747693844814,-331.931849,0.00018794,2]
[361688234,1747693844824,-151.0,0.000188,2]
[361688235,1747693844833,-151.0,0.000188,2]
[361688236,1747693844842,-636.0,0.000188,2]
[361688237,1747693844851,-154.447541,0.00018887,2]
[361688238,1747693844860,-154.447541,0.00018887,2]
[361688239,1747693844870,-151.0,0.000189,2]
[361688240,1747693844880,-151.0,0.000189,2]
[361688241,1747693844889,-151.0,0.00018904,2]
[361688242,1747693844899,-151.0,0.00018904,2]
[361688243,1747693844908,-151.0,0.00018904,2]
[361688244,1747693844917,-151.0,0.00018904,2]
[361688245,1747693844926,-151.0,0.00018904,2]
[361688246,1747693844935,-154.447541,0.00018904,2]
[361688247,1747693844945,-154.447541,0.00018904,2]
[361688248,1747693844953,-154.447541,0.00018904,2]
[361688249,1747693844962,-154.447541,0.00018904,2]
[361688250,1747693844971,-151.0,0.00018904,2]
[361688251,1747693844980,-151.0,0.00018904,2]
[361688252,1747693844990,-151.0,0.00018904,2]
[361688253,1747693844999,-246.50829,0.00018904,2]
[361688254,1747693845008,-151.0,0.00018904,2]
[361688255,1747693845017,-151.0,0.00018904,2]
[361688256,1747693845026,-151.0,0.00018904,2]
[361688257,1747693845035,-151.0,0.00018904,2]
[361688258,1747693845044,-151.0,0.00018904,2]
[361688259,1747693845053,-151.0,0.00018904,2]
[361688260,1747693845062,-151.0,0.00018904,2]
[361688261,1747693845071,-151.0,0.00018904,2]
[361688262,1747693845080,-151.0,0.00018904,2]
[361688263,1747693845089,-151.0,0.00018904,2]
[361688264,1747693845098,-151.0,0.00018904,2]
[361688265,1747693845108,-151.0,0.00018904,2]
[361688266,1747693845117,-151.0,0.00018904,2]
[361688267,1747693845126,-151.0,0.00018904,2]
[361688268,1747693845135,-151.0,0.00018904,2]
[361688269,1747693845144,-151.0,0.00018904,2]
[361688270,1747693845153,-151.0,0.00018904,2]
[361688271,1747693845162,-254.631583,0.00018904,2]
[361688272,1747693845171,-728.42,0.00018904,2]
[361688273,1747693845179,-430.0,0.00018904,2]
[361688274,1747693845192,-541.87776441,0.00018904,2]
[361688275,1747693845201,-651.52,0.00018904,2]
[361688276,1747693845210,-430.0,0.00018904,2]
[361688277,1747693845219,-430.0,0.00018904,2]
[361688278,1747693845229,-430.0,0.00018904,2]
[361688279,1747693845238,-255.784446,0.00018904,2]
[361688280,1747693845247,-255.784446,0.00018904,2]
[361688281,1747693845256,-255.784446,0.00018904,2]
[361688282,1747693845265,-255.784446,0.00018904,2]
[361688283,1747693845275,-255.784446,0.00018904,2]
[361688284,1747693845283,-255.78445,0.00018904,2]
[361688285,1747693845292,-430.0,0.00018904,2]
[361688286,1747693845301,-430.0,0.00018904,2]
[361688287,1747693845310,-430.0,0.00018904,2]
[361688288,1747693845319,-556.0389605,0.00018904,2]
[361688289,1747693845327,-430.0,0.00018904,2]
[361688290,1747693845336,-430.0,0.00018904,2]
[361688291,1747693845345,-430.0,0.00018904,2]
[361688292,1747693845354,-430.0,0.00018904,2]
[361688293,1747693845362,-530.0,0.00018904,2]
[361688294,1747693845372,-430.0,0.00018904,2]
[361688295,1747693845380,-287.390816,0.00018904,2]
[361688296,1747693845390,-406.36584679,0.00018904,2]
[361688297,1747693845399,-732.74,0.00018904,2]
[361688298,1747693845408,-430.0,0.00018904,2]
[361688299,1747693845417,-430.0,0.00018904,2]
[361688300,1747693845426,-530.0,0.00018904,2]
[361688301,1747693845435,-430.0,0.00018904,2]
[361688302,1747693845444,-530.0,0.00018904,2]
[361688303,1747693845453,-430.0,0.00018904,2]
[361688304,1747693845463,-430.0,0.00018904,2]
[361688305,1747693845472,-430.0,0.00018904,2]
[361688306,1747693845481,-430.0,0.00018904,2]
[361688307,1747693845491,-430.0,0.00018904,2]
[361688308,1747693845500,-509.72,0.00018904,2]
[361688309,1747693845509,-430.0,0.00018904,2]
[361688310,1747693845519,-430.0,0.00018904,2]
[361688311,1747693845528,-430.0,0.00018904,2]
[361688312,1747693845537,-430.0,0.00018904,2]
[361688313,1747693845546,-430.0,0.00018904,2]
[361688314,1747693845556,-430.0,0.00018904,2]
[361688315,1747693845566,-430.0,0.00018904,2]
[361688316,1747693845577,-430.0,0.00018904,2]
[361688317,1747693845586,-430.0,0.00018904,2]
[361688318,1747693845595,-430.0,0.00018904,2]
[361688319,1747693845604,-430.0,0.00018904,2]